[Event "CCT Chessable Masters D-II 2024"]
[Site "Online"]
[Date "2024.02.02"]
[Round "1"]
[White "tptagain"]
[Black "LevonAronian"]
[Result "1-0"]
[ECO "C65"]
[WhiteElo "2661"]
[BlackElo "2742"]
[Annotator "TA"]
[PlyCount "113"]
[EventDate "2024.01.12"]
[EventType "k.o."]
[EventCountry "NET"]
[SourceTitle "playchess.com"]
[Source "ChessBase"]
[SourceQuality "1"]
[TimeControl "600+2"]

{[%evp 40,113,391,400,422,433,435,413,440,417,659,661,931,927,2101,2054,2597,1162,1064,697,649,611,626,623,6170,6116,4806,579,527,0,595,609,733,722,814,675,1077,773,779,750,1246,1079,29949,1787,29956,29962,29965,29962,29961,29966,29965,29968,29971,29971,29966,29971,29975,29976,29975,29975,29979,1042,973,954,29979,29980,29955,1685,1569,1584,1541,1484,29992,29993,29993,29994]} 1. e4 {[%emt 0:00:04]} e5 {[%emt 0:00:05]} 2. Nf3 {[%emt 0:00:02]} Nc6 {[%emt 0:00:01]} 3. Bb5 {[%emt 0:00:05]} Nf6 {[%emt 0:00:02]} 4. d3 {[%emt 0:00:04]} d6 {[%emt 0:00:07]} 5. O-O {[%emt 0:00:07]} Bd7 {[%emt 0:00:09]} 6. c3 {[%emt 0:00:10]} g6 {[%emt 0:00:13]} 7. d4 {[%emt 0:00:16] C65: Ruy Lopez: Berlin Defence (3...Nf6), unusual lines and 4 0-0 Bc5.} Bg7 {[%emt 0:00:08]} 8. h3 $146 {[%emt 0:00:44]} ({Predecessor:} 8. d5 Ne7 9. Bxd7+ Nxd7 10. c4 O-O 11. Nc3 h6 12. a3 a5 13. Rb1 f5 14. b4 axb4 15. axb4 {1-0 Nakamura,H (2736)-Kamsky,G (2662) Titled Tuesday intern op 19th Oct blitz 2021 (5)}) 8... Nxe4 {[%emt 0:01:00]} 9. Re1 {[%emt 0:00:46]} f5 {[%emt 0:00:04]} 10. Qb3 {[%emt 0:01:37]} Qe7 {[%emt 0:00:11]} 11. Be3 {[%emt 0:01:25]} a6 {[%emt 0:01:34]} 12. Bf1 {[%emt 0:00:04]} b5 {[%emt 0:00:32]} 13. a4 {[%emt 0:00:28]} b4 {[%emt 0:00:07]} 14. a5 {[%emt 0:00:39]} g5 {[%emt 0:01:18]} 15. Nbd2 {[%emt 0:00:36]} Nxd2 {[%emt 0:01:02]} 16. Bxd2 {[%emt 0:00:00]} h6 {[%emt 0:00:01]} 17. d5 {[%emt 0:00:46]} Nd8 {[%emt 0:00:23]} 18. cxb4 {[%emt 0:00:04]} e4 {[%emt 0:00:30]} 19. Rac1 {[%emt 0:00:11]} c5 {[%emt 0:02:14]} 20. dxc6 {[%emt 0:00:34]} Bxc6 {[%emt 0:00:44]} 21. b5 {[%emt 0:00:49]} axb5 {[%emt 0:00:13] [#]} 22. Rxc6 $1 {[%emt 0:00:14]} (22. Bxb5 Bxb5 23. Qxb5+ Qd7 $18) 22... Nxc6 {[%emt 0:00:00]} 23. Bxb5 {[%emt 0:00:35]} Rc8 {[%emt 0:00:01]} 24. Qd5 {[%emt 0:00:10]} Qd7 {[%emt 0:00:01]} (24... Kd7 $142 25. Rc1 (25. Qxf5+ Qe6 $16) 25... Qe6 26. Bxc6+ Ke7) 25. Bc3 $18 {[%emt 0:00:16]} Bxc3 {[%emt 0:00:09]} 26. bxc3 {[%emt 0:00:00]} Kd8 {[%emt 0:00:01]} 27. Nd4 {[%emt 0:00:04]} Re8 {[%emt 0:00:03]} 28. Bxc6 {[%emt 0:00:04]} (28. Nxc6+ $142 Kc7 29. Nb4) 28... Re5 $18 {[%emt 0:00:01]} 29. Bxd7 {[%emt 0:00:02]} Rxd5 {[%emt 0:00:01]} 30. Bxc8 {[%emt 0:00:01]} Kxc8 {[%emt 0:00:00]} 31. Ra1 {[%emt 0:00:03]} Kb7 {[%emt 0:00:02]} 32. a6+ {[%emt 0:00:01]} Ka8 {[%emt 0:00:01]} 33. Nc6 {[%emt 0:00:01]} Rc5 {[%emt 0:00:00]} 34. Nd4 $2 {[%emt 0:00:02]} (34. Ne7 $18) 34... f4 $2 {[%emt 0:00:01][%mdl 8192]} (34... Rd5 $1 $11 35. Rb1 Rc5) 35. Ra3 $18 {[%emt 0:00:03]} Ka7 {[%emt 0:00:03]} 36. g3 {[%emt 0:00:01]} h5 {[%emt 0:00:03]} 37. Kg2 {[%emt 0:00:02]} Rc4 {[%emt 0:00:05]} 38. h4 {[%emt 0:00:03]} f3+ {[%emt 0:00:01]} 39. Kf1 {[%emt 0:00:00]} g4 {[%emt 0:00:00]} 40. Ke1 {[%emt 0:00:01]} e3 {[%emt 0:00:01]} 41. fxe3 {[%emt 0:00:01]} (41. Nb5+ $142 Ka8 42. fxe3 (42. Nxd6 Rc6 $18) 42... Rc5 43. Ra5 (43. Nxd6 Rd5 $18) 43... Rc8 44. a7 (44. Nxd6 Rxc3 45. Kd2 Rc6 $18) 44... Rc6 45. Kf1 Rc5 46. e4) 41... Rc5 {[%emt 0:00:01]} 42. Kf2 {[%emt 0:00:02]} d5 {[%emt 0:00:04]} 43. Ke1 {[%emt 0:00:02]} Rc8 {[%emt 0:00:03]} 44. Nb5+ {[%emt 0:00:01]} Ka8 {[%emt 0:00:01]} 45. a7 {[%emt 0:00:01]} Rc5 {[%emt 0:00:05]} 46. Nd4 {[%emt 0:00:01]} Rc7 {[%emt 0:00:02]} 47. Ne6 {[%emt 0:00:01]} Rb7 {[%emt 0:00:01]} 48. Ra1 {[%emt 0:00:03]} Re7 {[%emt 0:00:01]} 49. Nf4 {[%emt 0:00:02]} Rxe3+ {[%emt 0:00:02]} 50. Kd2 {[%emt 0:00:01]} (50. Kf2 $142 Re7 51. Nxd5 Rb7 52. Ke3 Rxa7 53. Rxa7+ Kxa7 54. Nf6 Kb6 55. Nxh5) 50... Re5 $18 {[%emt 0:00:03]} 51. Kd3 {[%emt 0:00:03]} Rf5 {[%emt 0:00:05]} 52. Ke3 {[%emt 0:00:04]} Re5+ {[%emt 0:00:01]} 53. Kd4 {[%emt 0:00:04]} (53. Kf2 $142 Re7 54. Nxd5 Rxa7 55. Rxa7+ Kxa7 56. Nf6 Kb8 57. Nxh5 Kc7 58. Nf4 (58. Nf6 Kd6 59. h5 Ke7 60. Nxg4 Kf8 61. c4 Kg7 62. Kxf3 Kg8)) 53... Re4+ $18 {[%emt 0:00:03]} 54. Kd3 {[%emt 0:00:02]} Re5 {[%emt 0:00:01]} 55. Ra2 {[%emt 0:00:01]} Re1 {[%emt 0:00:02]} 56. Nxd5 {[%emt 0:00:02]} Rd1+ {[%emt 0:00:02]} 57. Kc4 {[%emt 0:00:01]} 1-0

[Event "CCT Chessable Masters D-II 2024"]
[Site "Online"]
[Date "2024.02.02"]
[Round "1"]
[White "Sam_ChessMood"]
[Black "shimastream"]
[Result "1/2-1/2"]
[ECO "C65"]
[WhiteElo "2653"]
[BlackElo "2640"]
[Annotator "TA"]
[PlyCount "123"]
[EventDate "2024.01.12"]
[EventType "k.o."]
[EventCountry "NET"]
[SourceTitle "playchess.com"]
[Source "ChessBase"]
[SourceQuality "1"]
[TimeControl "600+2"]

{[%evp 44,123,35,34,29,26,37,30,39,39,37,30,43,39,69,68,98,95,92,98,101,100,118,91,81,50,56,41,51,37,44,33,33,28,47,45,81,44,51,0,0,0,0,0,0,0,0,0,0,0,0,0,0,0,0,0,0,0,0,0,0,0,0,0,0,0,0,-8,0,0,0,-65,0,0,0,0,0,0,0,0,0,-4]} 1. e4 {[%emt 0:00:06]} e5 {[%emt 0:00:09]} 2. Nf3 {[%emt 0:00:02]} Nc6 {[%emt 0:00:01]} 3. Bb5 {[%emt 0:00:02]} Bc5 {[%emt 0:00:03]} 4. c3 {[%emt 0:00:14]} Nf6 {[%emt 0:00:03]} 5. O-O {[%emt 0:00:50]} O-O {[%emt 0:00:04]} 6. d4 {[%emt 0:00:04]} Bb6 {[%emt 0:00:02]} 7. Re1 {[%emt 0:00:17]} d6 {[%emt 0:00:17]} 8. h3 {[%emt 0:00:16]} h6 {[%emt 0:00:50] has lost popularity (8...Bd7).} 9. a4 {[%emt 0:00:31] C65: Ruy Lopez: Berlin Defence (3...Nf6), unusual lines and 4 0-0 Bc5.} a5 {[%emt 0:00:10]} 10. Be3 {[%emt 0:00:42]} exd4 {[%emt 0:00:52]} 11. cxd4 {[%emt 0:00:03]} Nb4 {[%emt 0:00:03]} 12. Nc3 {[%emt 0:00:07]} c6 {[%emt 0:00:05]} 13. Bd3 {[%emt 0:01:03]} Nxd3 {[%emt 0:00:52]} 14. Qxd3 {[%emt 0:00:00]} Be6 $146 {[%emt 0:00:15]} ({Predecessor:} 14... d5 15. e5 Ne8 16. Nh2 f5 17. f4 Nc7 18. Kh1 Qh4 19. Rg1 Bd7 20. Raf1 Rf7 {1-0 Kokkila,T (2288)-Ovod,E (2409) FIN-chT 0607 2006 (7.3)}) 15. Rad1 {[%emt 0:00:16]} Re8 {[%emt 0:00:28]} 16. Nd2 {[%emt 0:00:21]} d5 {[%emt 0:00:28]} 17. e5 {[%emt 0:00:05]} Nh7 {[%emt 0:00:01]} 18. Ne2 {[%emt 0:00:34]} Qd7 {[%emt 0:00:10]} 19. Ng3 {[%emt 0:00:07]} Bd8 {[%emt 0:00:14]} 20. f4 {[%emt 0:00:41]} Bh4 {[%emt 0:00:27]} 21. Ndf1 {[%emt 0:00:01]} f5 {[%emt 0:00:10]} 22. Bf2 {[%emt 0:00:12]} Be7 {[%emt 0:00:14]} 23. Ne3 {[%emt 0:00:41]} Rf8 {[%emt 0:00:11]} 24. Ne2 {[%emt 0:00:06]} Rf7 {[%emt 0:00:29]} 25. Rf1 {[%emt 0:00:04]} Kh8 {[%emt 0:00:09]} 26. Be1 {[%emt 0:00:11]} g6 {[%emt 0:00:38]} 27. Kh1 {[%emt 0:00:04]} Bd8 {[%emt 0:00:07]} 28. Bd2 {[%emt 0:00:12]} Bc7 {[%emt 0:00:09]} 29. Ra1 {[%emt 0:00:01]} Rg8 {[%emt 0:00:22]} 30. b4 {[%emt 0:00:05]} axb4 {[%emt 0:00:02]} 31. Bxb4 {[%emt 0:00:01]} Ra8 {[%emt 0:00:33]} 32. a5 {[%emt 0:00:10]} Nf8 {[%emt 0:00:31]} 33. Rfb1 {[%emt 0:00:05]} Qc8 {[%emt 0:00:09]} 34. Ra3 {[%emt 0:00:56]} Bd7 {[%emt 0:00:08]} 35. Rba1 {[%emt 0:00:40]} Ne6 {[%emt 0:00:05]} 36. a6 {[%emt 0:00:01]} bxa6 {[%emt 0:00:16]} 37. Rxa6 {[%emt 0:00:02]} (37. Ba5 {looks sharper.} Rf8 38. Kg1 Kg7 39. Bb4) 37... Rxa6 {[%emt 0:00:01]} 38. Qxa6 {[%emt 0:00:01]} Qxa6 {[%emt 0:00:28]} 39. Rxa6 {[%emt 0:00:00]} Rg7 {[%emt 0:00:00]} 40. h4 {[%emt 0:00:22]} h5 {[%emt 0:00:15]} 41. Bd6 {[%emt 0:00:09]} (41. Nc2 $14) 41... Bxd6 $11 {[%emt 0:00:23]} 42. exd6 {[%emt 0:00:00]} Rg8 {[%emt 0:00:00]} 43. Ra7 {[%emt 0:00:03]} Rd8 {[%emt 0:00:01]} 44. Nc2 {[%emt 0:00:06]} Be8 {[%emt 0:00:04]} 45. Nb4 {[%emt 0:00:02]} Rxd6 {[%emt 0:00:04]} 46. Nd3 {[%emt 0:00:09]} Rd7 {[%emt 0:00:03]} 47. Ra8 {[%emt 0:00:09]} Rd8 {[%emt 0:00:01]} 48. Ra7 {[%emt 0:00:03]} Rd7 {[%emt 0:00:01]} 49. Ra6 {[%emt 0:00:22]} Rb7 {[%emt 0:00:15]} 50. Ra8 {[%emt 0:00:02]} Nc7 {[%emt 0:00:02]} 51. Rc8 {[%emt 0:00:03]} Kg8 {[%emt 0:00:10]} 52. Nc5 {[%emt 0:00:08]} Ra7 {[%emt 0:00:01]} 53. Ng1 {[%emt 0:00:03]} Kf7 {[%emt 0:00:06]} 54. Nf3 {[%emt 0:00:01]} Ke7 {[%emt 0:00:04]} 55. Ne5 {[%emt 0:00:01]} Ra1+ {[%emt 0:00:00]} 56. Kh2 {[%emt 0:00:01]} Nb5 {[%emt 0:00:01]} 57. Nf3 {[%emt 0:00:09]} (57. Nxc6+ $11 Bxc6 58. Rxc6) 57... Ra7 {[%emt 0:00:03]} (57... Rc1 $15 58. Nd3 Rd1) 58. Rb8 $1 $11 {[%emt 0:00:03]} Nd6 {[%emt 0:00:02]} 59. Ne5 {[%emt 0:00:02]} Nb5 {[%emt 0:00:02]} 60. Nf3 {[%emt 0:00:01]} Nd6 {[%emt 0:00:01]} 61. Ne5 {[%emt 0:00:02]} Nb5 {[%emt 0:00:01]} 62. Nf3 {[%emt 0:00:05]} 1/2-1/2

[Event "CCT Chessable Masters D-II 2024"]
[Site "Online"]
[Date "2024.02.02"]
[Round "1"]
[White "Mamedov, Rauf"]
[Black "GMBenjaminBok"]
[Result "1/2-1/2"]
[ECO "A07"]
[WhiteElo "2651"]
[BlackElo "2626"]
[Annotator "TA"]
[PlyCount "58"]
[EventDate "2024.01.12"]
[EventType "k.o."]
[EventCountry "NET"]
[SourceTitle "playchess.com"]
[Source "ChessBase"]
[SourceQuality "1"]
[TimeControl "600+2"]

{[%evp 10,58,6,0,0,13,0,0,-2,0,0,0,0,-8,-6,-13,0,0,0,0,0,0,0,0,0,0,3,0,0,0,1,0,0,0,2,0,0,-2,0,0,0,0,0,0,0,0,0,0,0,0,0]} 1. Nf3 {[%emt 0:00:03]} d5 {[%emt 0:00:06]} 2. g3 {[%emt 0:00:01]} g6 {[%emt 0:00:02]} 3. Bg2 {[%emt 0:00:01]} Bg7 {[%emt 0:00:00]} 4. O-O {[%emt 0:00:01]} e5 {[%emt 0:00:02]} 5. d3 {[%emt 0:00:01]} Nc6 {[%emt 0:00:01]} 6. e4 {[%emt 0:00:01] The position is equal.} dxe4 {[%emt 0:00:02]} 7. dxe4 {[%emt 0:00:01]} Qxd1 {[%emt 0:00:00]} 8. Rxd1 {[%emt 0:00:01]} Bg4 {[%emt 0:00:00]} 9. c3 {[%emt 0:00:09] Prevents Nd4.} Nf6 {[%emt 0:00:02]} 10. Nbd2 {[%emt 0:00:31]} O-O {[%emt 0:00:05]} 11. h3 {[%emt 0:00:12]} Be6 {[%emt 0:00:12]} 12. Ng5 {[%emt 0:00:05]} Bd7 {[%emt 0:00:13]} 13. Nc4 {[%emt 0:00:13]} Rfd8 {[%emt 0:00:05]} 14. Be3 {[%emt 0:01:11]} h6 {[%emt 0:06:05]} 15. Nf3 {[%emt 0:00:02]} Nxe4 {[%emt 0:00:03]} 16. Nfxe5 {[%emt 0:00:37]} Nxe5 {[%emt 0:00:04]} 17. Nxe5 {[%emt 0:00:01]} Bxe5 {[%emt 0:00:05]} 18. Bxe4 {[%emt 0:00:01]} Bxh3 {[%emt 0:00:04]} 19. Bxh6 {[%emt 0:00:46]} c6 {[%emt 0:00:04]} 20. Bg5 {[%emt 0:00:04]} Rxd1+ {[%emt 0:00:16]} 21. Rxd1 {[%emt 0:00:01]} Be6 {[%emt 0:00:00]} 22. a3 {[%emt 0:00:53]} Kg7 {[%emt 0:00:05]} 23. Kg2 {[%emt 0:00:36]} a6 {[%emt 0:00:16]} 24. Be3 {[%emt 0:00:21]} f5 {[%emt 0:00:18]} 25. Bf3 {[%emt 0:00:08]} Kf7 {[%emt 0:00:08]} 26. Be2 {[%emt 0:01:19]} Bd5+ {[%emt 0:00:25]} 27. Bf3 {[%emt 0:00:01]} Be6 {[%emt 0:00:01]} 28. Be2 {[%emt 0:00:09]} Bd5+ {[%emt 0:00:01]} 29. Bf3 {[%emt 0:00:01]} Be6 {[%emt 0:00:01] A rather calm draw.   Weighted Error Value: White=0.01 (flawless) /Black=0.01 (flawless) .  OK:         	White=13    	Black=15} 1/2-1/2

[Event "CCT Chessable Masters D-II 2024"]
[Site "Online"]
[Date "2024.02.02"]
[Round "1"]
[White "GMBenjaminBok"]
[Black "Mamedov, Rauf"]
[Result "1-0"]
[ECO "E63"]
[WhiteElo "2640"]
[BlackElo "2651"]
[Annotator "ChessBase"]
[PlyCount "247"]
[EventDate "2024.01.12"]
[EventType "k.o."]
[EventCountry "NET"]
[SourceTitle "playchess.com"]
[Source "ChessBase"]
[SourceQuality "1"]
[TimeControl "600+2"]

1. d4 {[%emt 0:00:02]} Nf6 {[%emt 0:00:04]} 2. c4 {[%emt 0:00:02]} d6 {[%emt 0:00:07]} 3. Nf3 {[%emt 0:00:05]} g6 {[%emt 0:00:02]} 4. g3 {[%emt 0:00:04]} Bg7 {[%emt 0:00:02]} 5. Bg2 {[%emt 0:00:01]} O-O {[%emt 0:00:01]} 6. Nc3 {[%emt 0:00:02]} Nc6 {[%emt 0:00:01]} 7. O-O {[%emt 0:00:04]} Bf5 {[%emt 0:00:02]} 8. b3 {[%emt 0:00:34]} a6 {[%emt 0:00:10]} 9. Bb2 {[%emt 0:00:19]} Rb8 {[%emt 0:00:02]} 10. Rc1 {[%emt 0:00:29]} Re8 {[%emt 0:01:06]} 11. d5 {[%emt 0:01:01]} Na7 {[%emt 0:00:06]} 12. Nd4 {[%emt 0:00:04]} Bd7 {[%emt 0:00:01]} 13. e4 {[%emt 0:00:11]} c5 {[%emt 0:00:01]} 14. dxc6 {[%emt 0:00:30]} bxc6 {[%emt 0:00:05]} 15. e5 {[%emt 0:02:06]} dxe5 {[%emt 0:00:03]} 16. Nf3 {[%emt 0:00:02]} e4 {[%emt 0:00:12]} 17. Ng5 {[%emt 0:00:18]} e3 {[%emt 0:00:03]} 18. fxe3 {[%emt 0:00:15]} Qa5 {[%emt 0:01:26]} 19. Nge4 {[%emt 0:01:35]} Nxe4 {[%emt 0:00:07]} 20. Bxe4 {[%emt 0:00:00]} Bh3 {[%emt 0:00:06]} 21. Bg2 {[%emt 0:00:33]} Rbd8 {[%emt 0:00:24]} 22. Qf3 {[%emt 0:00:19]} Bf5 {[%emt 0:00:02]} 23. Rf2 {[%emt 0:00:38]} Rd3 {[%emt 0:00:40]} 24. Na4 {[%emt 0:01:00]} Bh6 {[%emt 0:00:01]} 25. Re2 {[%emt 0:00:11]} Qb4 {[%emt 0:00:21]} 26. Rf1 {[%emt 0:00:11]} Red8 {[%emt 0:00:17]} 27. Bh3 {[%emt 0:00:05]} f6 {[%emt 0:03:21]} 28. Bxf5 {[%emt 0:00:06]} gxf5 {[%emt 0:00:01]} 29. Kg2 {[%emt 0:00:06]} e5 {[%emt 0:01:12]} 30. Qxf5 {[%emt 0:00:03]} Bg7 {[%emt 0:00:01]} 31. Qe6+ {[%emt 0:00:04]} Kh8 {[%emt 0:00:01]} 32. Rxf6 {[%emt 0:00:01]} R3d6 {[%emt 0:00:01]} 33. Qxe5 {[%emt 0:00:04]} Bxf6 {[%emt 0:00:05]} 34. Qxf6+ {[%emt 0:00:01]} Rxf6 {[%emt 0:00:02]} 35. Bxf6+ {[%emt 0:00:00]} Kg8 {[%emt 0:00:01]} 36. Bxd8 {[%emt 0:00:01]} Nc8 {[%emt 0:00:27]} 37. Bf6 {[%emt 0:00:02]} Qf8 {[%emt 0:00:16]} 38. Rf2 {[%emt 0:00:02]} Qd6 {[%emt 0:00:09]} 39. Bd4 {[%emt 0:00:03]} Ne7 {[%emt 0:00:01]} 40. Nc5 {[%emt 0:00:02]} Qg6 {[%emt 0:00:04]} 41. Nd7 {[%emt 0:00:03]} Qe4+ {[%emt 0:00:02]} 42. Kg1 {[%emt 0:00:01]} Qb1+ {[%emt 0:00:01]} 43. Kg2 {[%emt 0:00:01]} Nf5 {[%emt 0:00:04]} 44. Nf6+ {[%emt 0:00:05]} Kf7 {[%emt 0:00:01]} 45. Nxh7 {[%emt 0:00:02]} Ke7 {[%emt 0:00:06]} 46. Bc5+ {[%emt 0:00:02]} Kd8 {[%emt 0:00:02]} 47. Ng5 {[%emt 0:00:02]} Qd3 {[%emt 0:00:03]} 48. e4 {[%emt 0:00:03]} Ne3+ {[%emt 0:00:03]} 49. Bxe3 {[%emt 0:00:01]} Qxe3 {[%emt 0:00:00]} 50. h4 {[%emt 0:00:01]} Ke8 {[%emt 0:00:01]} 51. Nf3 {[%emt 0:00:04]} Qxe4 {[%emt 0:00:02]} 52. h5 {[%emt 0:00:02]} Kf8 {[%emt 0:00:01]} 53. Kh2 {[%emt 0:00:02]} Kg7 {[%emt 0:00:02]} 54. Nh4 {[%emt 0:00:01]} a5 {[%emt 0:00:01]} 55. Nf5+ {[%emt 0:00:01]} Kh7 {[%emt 0:00:01]} 56. Nh4 {[%emt 0:00:01]} a4 {[%emt 0:00:01]} 57. bxa4 {[%emt 0:00:03]} Qxc4 {[%emt 0:00:02]} 58. a5 {[%emt 0:00:01]} Qb5 {[%emt 0:00:02]} 59. Rc2 {[%emt 0:00:04]} c5 {[%emt 0:00:02]} 60. Nf3 {[%emt 0:00:03]} Qxa5 {[%emt 0:00:01]} 61. Ng5+ {[%emt 0:00:01]} Kh8 {[%emt 0:00:01]} 62. Ne4 {[%emt 0:00:03]} Qa4 {[%emt 0:00:01]} 63. Re2 {[%emt 0:00:03]} Qc4 {[%emt 0:00:01]} 64. Re1 {[%emt 0:00:02]} Qxa2+ {[%emt 0:00:01]} 65. Kh3 {[%emt 0:00:00]} c4 {[%emt 0:00:01]} 66. Re3 {[%emt 0:00:03]} Qb1 {[%emt 0:00:01]} 67. Kg4 {[%emt 0:00:01]} Qd1+ {[%emt 0:00:02]} 68. Kf4 {[%emt 0:00:01]} Qc1 {[%emt 0:00:01]} 69. g4 {[%emt 0:00:02]} Kg7 {[%emt 0:00:03]} 70. g5 {[%emt 0:00:02]} Qf1+ {[%emt 0:00:01]} 71. Rf3 {[%emt 0:00:01]} Qh1 {[%emt 0:00:03]} 72. Kg4 {[%emt 0:00:02]} Qg2+ {[%emt 0:00:02]} 73. Kf4 {[%emt 0:00:01]} Qg1 {[%emt 0:00:03]} 74. Ke5 {[%emt 0:00:04]} Qa1+ {[%emt 0:00:04]} 75. Kf5 {[%emt 0:00:03]} Qa5+ {[%emt 0:00:05]} 76. Kf4 {[%emt 0:00:02]} Qd5 {[%emt 0:00:02]} 77. Re3 {[%emt 0:00:04]} Qd4 {[%emt 0:00:01]} 78. Rf3 {[%emt 0:00:00]} Qg1 {[%emt 0:00:03]} 79. Kf5 {[%emt 0:00:03]} Qd1 {[%emt 0:00:03]} 80. h6+ {[%emt 0:00:02]} Kg8 {[%emt 0:00:01]} 81. Re3 {[%emt 0:00:02]} Qd5+ {[%emt 0:00:03]} 82. Kf4 {[%emt 0:00:01]} Qd4 {[%emt 0:00:00]} 83. Rf3 {[%emt 0:00:02]} Kh7 {[%emt 0:00:02]} 84. Kf5 {[%emt 0:00:01]} Qd5+ {[%emt 0:00:01]} 85. Kf4 {[%emt 0:00:00]} Kg6 {[%emt 0:00:01]} 86. Re3 {[%emt 0:00:02]} Qd4 {[%emt 0:00:01]} 87. Rf3 {[%emt 0:00:01]} Qg1 {[%emt 0:00:03]} 88. Ke5 {[%emt 0:00:02]} Qa1+ {[%emt 0:00:02]} 89. Ke6 {[%emt 0:00:04]} Qa6+ {[%emt 0:00:02]} 90. Ke5 {[%emt 0:00:00]} Qa1+ {[%emt 0:00:04]} 91. Ke6 {[%emt 0:00:01]} Qe1 {[%emt 0:00:01]} 92. Ke5 {[%emt 0:00:02]} Qe2 {[%emt 0:00:03]} 93. Rf6+ {[%emt 0:00:02]} Kh7 {[%emt 0:00:01]} 94. Rf7+ {[%emt 0:00:01]} Kg8 {[%emt 0:00:02]} 95. h7+ {[%emt 0:00:04]} Kh8 {[%emt 0:00:01]} 96. g6 {[%emt 0:00:03]} Qh5+ {[%emt 0:00:07]} 97. Kf6 {[%emt 0:00:02]} Qh4+ {[%emt 0:00:01]} 98. Ke5 {[%emt 0:00:04]} Qh2+ {[%emt 0:00:02]} 99. Ke6 {[%emt 0:00:05]} Qh3+ {[%emt 0:00:05]} 100. Ke5 {[%emt 0:00:01]} Qh6 {[%emt 0:00:02]} 101. Kf5 {[%emt 0:00:02]} Qh3+ {[%emt 0:00:04]} 102. Ke5 {[%emt 0:00:02]} Qc8 {[%emt 0:00:01]} 103. Nd6 {[%emt 0:00:02]} Qc5+ {[%emt 0:00:03]} 104. Ke6 {[%emt 0:00:00]} Qe3+ {[%emt 0:00:01]} 105. Kd7 {[%emt 0:00:02]} Qh3+ {[%emt 0:00:00]} 106. Kd8 {[%emt 0:00:01]} Qh4+ {[%emt 0:00:01]} 107. Ke8 {[%emt 0:00:02]} Qh5 {[%emt 0:00:03]} 108. Rf8+ {[%emt 0:00:01]} Kg7 {[%emt 0:00:00]} 109. h8=Q+ {[%emt 0:00:00]} Qxh8 {[%emt 0:00:01]} 110. Rxh8 {[%emt 0:00:00]} Kxh8 {[%emt 0:00:00]} 111. Nxc4 {[%emt 0:00:01]} Kg7 {[%emt 0:00:01]} 112. Ne5 {[%emt 0:00:01]} Kf6 {[%emt 0:00:00]} 113. Kf8 {[%emt 0:00:01]} Kxe5 {[%emt 0:00:01]} 114. g7 {[%emt 0:00:00]} Kf6 {[%emt 0:00:01]} 115. g8=Q {[%emt 0:00:00]} Ke5 {[%emt 0:00:00]} 116. Qg6 {[%emt 0:00:01]} Kf4 {[%emt 0:00:01]} 117. Ke7 {[%emt 0:00:00]} Ke3 {[%emt 0:00:00]} 118. Qg4 {[%emt 0:00:01]} Kf2 {[%emt 0:00:00]} 119. Kd6 {[%emt 0:00:00]} Ke1 {[%emt 0:00:01]} 120. Qg2 {[%emt 0:00:01]} Kd1 {[%emt 0:00:00]} 121. Kd5 {[%emt 0:00:00]} Kc1 {[%emt 0:00:01]} 122. Kd4 {[%emt 0:00:01]} Kb1 {[%emt 0:00:00]} 123. Kc3 {[%emt 0:00:00]} Ka1 {[%emt 0:00:00]} 124. Qb2# {[%emt 0:00:01]} 1-0

[Event "CCT Chessable Masters D-II 2024"]
[Site "Online"]
[Date "2024.02.02"]
[Round "1"]
[White "shimastream"]
[Black "Sam_ChessMood"]
[Result "1/2-1/2"]
[ECO "A20"]
[WhiteElo "2640"]
[BlackElo "2653"]
[Annotator "TA"]
[PlyCount "76"]
[EventDate "2024.01.12"]
[EventType "k.o."]
[EventCountry "NET"]
[SourceTitle "playchess.com"]
[Source "ChessBase"]
[SourceQuality "1"]
[TimeControl "600+2"]

{[%evp 9,76,28,22,7,19,17,9,3,16,11,9,0,0,0,0,0,0,0,0,0,0,0,0,0,0,0,12,11,27,35,32,34,25,4,10,7,2,-37,0,0,7,-14,0,-10,0,0,0,0,0,0,0,0,0,0,0,-25,0,0,0,0,0,0,0,0,0,0,0,0,0]} 1. c4 {[%emt 0:00:04]} e5 {[%emt 0:00:04][%cal Be7e5,Be5e4][%mdl 32]} 2. g3 {[%emt 0:00:02]} c6 {[%emt 0:00:02]} 3. Nf3 {[%emt 0:00:02]} e4 {[%emt 0:00:02]} 4. Nd4 {[%emt 0:00:02]} d5 {[%emt 0:00:01]} 5. cxd5 {[%emt 0:00:01]} Qxd5 {[%emt 0:00:02]} 6. Nc2 {[%emt 0:00:01]} Nf6 {[%emt 0:00:01]} 7. Nc3 {[%emt 0:00:02]} Qe5 {[%emt 0:00:01]} 8. Bg2 {[%emt 0:00:02]} Na6 {[%emt 0:00:02]} 9. O-O {[%emt 0:00:02]} Be7 {[%emt 0:00:02]} 10. Nxe4 {[%emt 0:00:01]} Nxe4 {[%emt 0:00:04]} 11. f4 $1 {[%emt 0:00:02]} Qd5 {[%emt 0:00:06] [#] And now ...Bc5+ would win.} 12. d3 {[%emt 0:00:09]} Bc5+ {[%emt 0:00:28]} 13. Ne3 {[%emt 0:00:08]} Bf5 {[%emt 0:00:28] Hoping for ...0-0-0.} 14. dxe4 {[%emt 0:00:33]} (14. Qa4 {keeps more tension.} Nb4 15. Qxb4 Bxb4 16. Nxd5 cxd5 17. dxe4 Bc5+ 18. e3) 14... Bxe4 {[%emt 0:00:33]} 15. Qxd5 {[%emt 0:00:04]} cxd5 {[%emt 0:00:59]} 16. Bxe4 {[%emt 0:00:08]} dxe4 {[%emt 0:00:01]} 17. a3 {[%emt 0:00:02] Repels Nb4} O-O-O {[%emt 0:01:52]} 18. Kg2 {[%emt 0:00:14]} Rhe8 {[%emt 0:00:13]} 19. b4 {[%emt 0:00:23]} Bd4 {[%emt 0:00:10]} 20. Ra2 {[%emt 0:00:01][%cal Ba1a2,Ba2c2,Bc2c1][%mdl 32]} Nc7 {[%emt 0:00:40]} 21. Nc4 {[%emt 0:01:53]} b5 {[%emt 0:00:33]} 22. Na5 {[%emt 0:00:13]} Bb6 {[%emt 0:00:01]} 23. Nb3 {[%emt 0:00:45]} Rd5 {[%emt 0:00:22]} 24. Rc2 {[%emt 0:00:34]} Kb7 {[%emt 0:00:02]} 25. Bd2 {[%emt 0:00:26][%cal Bc1d2,Bd2e1,Be1f2][%mdl 32]} Ne6 {[%emt 0:00:42]} 26. Rfc1 {[%emt 0:00:35]} Red8 {[%emt 0:00:22]} 27. Be1 {[%emt 0:00:08]} Rd1 {[%emt 0:00:07][%cal Oe6d4]} 28. Bf2 {[%emt 0:00:08]} Rxc1 {[%emt 0:00:15]} 29. Rxc1 {[%emt 0:00:00]} f5 {[%emt 0:00:07]} 30. Kf1 {[%emt 0:00:51]} h5 {[%emt 0:00:07]} 31. h4 {[%emt 0:00:12]} g6 {[%emt 0:00:13]} 32. Kg2 {[%emt 0:00:03]} Rc8 {[%emt 0:00:33]} 33. Rxc8 {[%emt 0:00:12] The position is equal.} Kxc8 {[%emt 0:00:02]} 34. Bxb6 {[%emt 0:00:00]} axb6 $11 {[%emt 0:00:00] KN-KN} 35. Kf2 {[%emt 0:00:00]} Kd7 {[%emt 0:00:11]} 36. Ke3 {[%emt 0:00:01]} Kd6 {[%emt 0:00:03]} 37. Nd4 {[%emt 0:00:30]} Nxd4 {[%emt 0:00:53]} 38. Kxd4 {[%emt 0:00:00]} Ke6 {[%emt 0:00:01] Weighted Error Value: White=0.04 (flawless) /Black=0.04 (flawless) .  Inaccurate:     	White=1     	Black=1      OK:         	White=19    	Black=12     Best:        	White=3     	Black=1      Strong:       	White=1     	---} 1/2-1/2